Workbook

Sheet Лист6
B2: 24 | C2: 82.2 | D2: =31.74731*B2 - 679.7349 -> 82.20054 | E2: =C2-D2 -> -0.0005399999999
B3: 24.01 | C3: 82.52 | D3: 82.5180131 | E3: 0.0019869
B4: 24.02 | C4: 82.84 | D4: 82.8354862 | E4: 0.0045138
B5: 24.03 | C5: 83.15 | D5: 83.1529593 | E5: -0.0029593
B6: 24.04 | C6: 83.47 | D6: 83.4704324 | E6: -0.0004323999999
B7: 24.05 | C7: 83.79 | D7: 83.7879055 | E7: 0.0020945
B8: 24.06 | C8: 84.1 | D8: 84.1053786 | E8: -0.0053786
B9: 24.07 | C9: 84.42 | D9: 84.4228517 | E9: -0.0028517
B10: 24.08 | C10: 84.74 | D10: 84.7403248 | E10: -0.0003247999998
B11: 24.09 | C11: 85.06 | D11: 85.0577979 | E11: 0.0022021
B12: 24.1 | C12: 85.38 | D12: 85.375271 | E12: 0.004729
B13: 24.11 | C13: 85.69 | D13: 85.6927441 | E13: -0.0027441
B14: 24.12 | C14: 86.01 | D14: 86.0102172 | E14: -0.0002171999999
B15: 24.13 | C15: 86.33 | D15: 86.3276903 | E15: 0.0023097
B16: 24.14 | C16: 86.65 | D16: 86.6451634 | E16: 0.0048366
B17: 24.15 | C17: 86.96 | D17: 86.9626365 | E17: -0.0026365
B18: 24.16 | C18: 87.28 | D18: 87.2801096 | E18: -0.0001095999999
B19: 24.17 | C19: 87.6 | D19: 87.5975827 | E19: 0.0024173
B20: 24.18 | C20: 87.92 | D20: 87.9150558 | E20: 0.0049442
B21: 24.19 | C21: 88.23 | D21: 88.2325289 | E21: -0.0025289
B22: 24.2 | C22: 88.55 | D22: 88.550002 | E22: -1.999999952e-06
B23: 24.21 | C23: 88.87 | D23: 88.8674751 | E23: 0.0025249
B24: 24.22 | C24: 89.19 | D24: 89.1849482 | E24: 0.0050518
B25: 24.23 | C25: 89.5 | D25: 89.5024213 | E25: -0.0024213
B26: 24.24 | C26: 89.82 | D26: 89.8198944 | E26: 0.0001056000002
B27: 24.25 | C27: 90.14 | D27: 90.1373675 | E27: 0.0026325
B28: 24.26 | C28: 90.46 | D28: 90.4548406 | E28: 0.0051594
B29: 24.27 | C29: 90.77 | D29: 90.7723137 | E29: -0.0023137
B30: 24.28 | C30: 91.09 | D30: 91.0897868 | E30: 0.0002132
B31: 24.29 | C31: 91.41 | D31: 91.4072599 | E31: 0.0027401
B32: 24.3 | C32: 91.72 | D32: 91.724733 | E32: -0.004733
B33: 24.31 | C33: 92.04 | D33: 92.0422061 | E33: -0.0022061
B34: 24.32 | C34: 92.36 | D34: 92.3596792 | E34: 0.0003208
B35: 24.33 | C35: 92.68 | D35: 92.6771523 | E35: 0.0028477
B36: 24.34 | C36: 92.99 | D36: 92.9946254 | E36: -0.0046254
B37: 24.35 | C37: 93.31 | D37: 93.3120985 | E37: -0.0020985
B38: 24.36 | C38: 93.63 | D38: 93.6295716 | E38: 0.0004284
B39: 24.37 | C39: 93.95 | D39: 93.9470447 | E39: 0.0029553
B40: 24.38 | C40: 94.26 | D40: 94.2645178 | E40: -0.0045178
B41: 24.39 | C41: 94.58 | D41: 94.5819909 | E41: -0.0019909
B42: 24.4 | C42: 94.9 | D42: 94.899464 | E42: 0.0005360000002
B43: 24.41 | C43: 95.22 | D43: 95.2169371 | E43: 0.0030629
B44: 24.42 | C44: 95.53 | D44: 95.5344102 | E44: -0.004410200003
B45: 24.43 | C45: 95.85 | D45: 95.8518833 | E45: -0.001883300003
B46: 24.44 | C46: 96.17 | D46: 96.1693564 | E46: 0.0006435999968
B47: 24.45 | C47: 96.49 | D47: 96.4868295 | E47: 0.003170499997
B48: 24.46 | C48: 96.8 | D48: 96.8043026 | E48: -0.004302600003
B49: 24.47 | C49: 97.12 | D49: 97.1217757 | E49: -0.001775700003
B50: 24.48 | C50: 97.44 | D50: 97.4392488 | E50: 0.0007511999968
B51: 24.49 | C51: 97.76 | D51: 97.7567219 | E51: 0.003278099997
B52: 24.5 | C52: 98.07 | D52: 98.074195 | E52: -0.004195000003
B53: 24.51 | C53: 98.39 | D53: 98.3916681 | E53: -0.001668100003
B54: 24.52 | C54: 98.71 | D54: 98.7091412 | E54: 0.0008587999969
B55: 24.53 | C55: 99.03 | D55: 99.0266143 | E55: 0.003385699997
B56: 24.54 | C56: 99.34 | D56: 99.3440874 | E56: -0.004087400003
B57: 24.55 | C57: 99.66 | D57: 99.6615605 | E57: -0.001560500003
B58: 24.56 | C58: 99.98 | D58: 99.9790336 | E58: 0.0009663999968
B59: 24.57 | C59: 100.3 | D59: 100.2965067 | E59: 0.003493299997
B60: 24.58 | C60: 100.61 | D60: 100.6139798 | E60: -0.003979800003
B61: 24.59 | C61: 100.93 | D61: 100.9314529 | E61: -0.001452900003
B62: 24.6 | C62: 101.25 | D62: 101.248926 | E62: 0.001073999997
B63: 24.61 | C63: 101.57 | D63: 101.5663991 | E63: 0.003600899997
B64: 24.62 | C64: 101.88 | D64: 101.8838722 | E64: -0.003872200003
B65: 24.63 | C65: 102.2 | D65: 102.2013453 | E65: -0.001345300003
B66: 24.64 | C66: 102.52 | D66: =31.74731*B66 - 679.7349 -> 102.5188184 | E66: =C66-D66 -> 0.001181599997
B67: 24.65 | C67: 102.84 | D67: 102.8362915 | E67: 0.003708499997
B68: 24.66 | C68: 103.15 | D68: 103.1537646 | E68: -0.003764600003
B69: 24.67 | C69: 103.47 | D69: 103.4712377 | E69: -0.001237700003
B70: 24.68 | C70: 103.79 | D70: 103.7887108 | E70: 0.001289199997
B71: 24.69 | C71: 104.11 | D71: 104.1061839 | E71: 0.003816099997
B72: 24.7 | C72: 104.42 | D72: 104.423657 | E72: -0.003657000003
B73: 24.71 | C73: 104.74 | D73: 104.7411301 | E73: -0.001130100003
B74: 24.72 | C74: 105.06 | D74: 105.0586032 | E74: 0.001396799997
B75: 24.73 | C75: 105.38 | D75: 105.3760763 | E75: 0.003923699997
B76: 24.74 | C76: 105.69 | D76: 105.6935494 | E76: -0.003549400003
B77: 24.75 | C77: 106.01 | D77: 106.0110225 | E77: -0.001022500003
B78: 24.76 | C78: 106.33 | D78: 106.3284956 | E78: 0.001504399997
B79: 24.77 | C79: 106.65 | D79: 106.6459687 | E79: 0.004031299997
B80: 24.78 | C80: 106.96 | D80: 106.9634418 | E80: -0.003441800003
B81: 24.79 | C81: 107.28 | D81: 107.2809149 | E81: -0.000914900003
B82: 24.8 | C82: 107.6 | D82: 107.598388 | E82: 0.001611999997
B83: 24.81 | C83: 107.92 | D83: 107.9158611 | E83: 0.004138899997
B84: 24.82 | C84: 108.23 | D84: 108.2333342 | E84: -0.003334200003
B85: 24.83 | C85: 108.55 | D85: 108.5508073 | E85: -0.0008073000032
B86: 24.84 | C86: 108.87 | D86: 108.8682804 | E86: 0.001719599997
B87: 24.85 | C87: 109.19 | D87: 109.1857535 | E87: 0.004246499997
B88: 24.86 | C88: 109.5 | D88: 109.5032266 | E88: -0.003226600003
B89: 24.87 | C89: 109.82 | D89: 109.8206997 | E89: -0.0006997000032
B90: 24.88 | C90: 110.14 | D90: 110.1381728 | E90: 0.001827199997
B91: 24.89 | C91: 110.46 | D91: 110.4556459 | E91: 0.004354099997
B92: 24.9 | C92: 110.77 | D92: 110.773119 | E92: -0.003119000003
B93: 24.91 | C93: 111.09 | D93: 111.0905921 | E93: -0.000592100003
B94: 24.92 | C94: 111.41 | D94: 111.4080652 | E94: 0.001934799997
B95: 24.93 | C95: 111.73 | D95: 111.7255383 | E95: 0.004461699997
B96: 24.94 | C96: 112.04 | D96: 112.0430114 | E96: -0.003011400003
B97: 24.95 | C97: 112.36 | D97: 112.3604845 | E97: -0.0004845000031
B98: 24.96 | C98: 112.68 | D98: 112.6779576 | E98: 0.002042399997
B99: 24.97 | C99: 113 | D99: 112.9954307 | E99: 0.004569299997
B100: 24.98 | C100: 113.31 | D100: 113.3129038 | E100: -0.002903800003
B101: 24.99 | C101: 113.63 | D101: 113.6303769 | E101: -0.0003769000032
B102: 25 | C102: 113.95 | D102: =39.35046*B102 - 869.8121 -> 113.9494 | E102: 0.0005999999962
B103: 25.01 | C103: 114.34 | D103: 114.3429046 | E103: -0.002904600004
B104: 25.02 | C104: 114.74 | D104: 114.7364092 | E104: 0.003590799996
B105: 25.03 | C105: 115.13 | D105: 115.1299138 | E105: 8.619999608e-05
B106: 25.04 | C106: 115.52 | D106: 115.5234184 | E106: -0.003418400004
B107: 25.05 | C107: 115.92 | D107: 115.916923 | E107: 0.003076999996
B108: 25.06 | C108: 116.31 | D108: 116.3104276 | E108: -0.0004276000079
B109: 25.07 | C109: 116.7 | D109: 116.7039322 | E109: -0.003932200008
B110: 25.08 | C110: 117.1 | D110: 117.0974368 | E110: 0.002563199992
B111: 25.09 | C111: 117.49 | D111: 117.4909414 | E111: -0.0009414000078
B112: 25.1 | C112: 117.88 | D112: 117.884446 | E112: -0.004446000008
B113: 25.11 | C113: 118.28 | D113: 118.2779506 | E113: 0.002049399992
B114: 25.12 | C114: 118.67 | D114: 118.6714552 | E114: -0.001455200008
B115: 25.13 | C115: 119.07 | D115: 119.0649598 | E115: 0.005040199992
B116: 25.14 | C116: 119.46 | D116: 119.4584644 | E116: 0.001535599992
B117: 25.15 | C117: 119.85 | D117: 119.851969 | E117: -0.001969000008
B118: 25.16 | C118: 120.25 | D118: 120.2454736 | E118: 0.004526399992
B119: 25.17 | C119: 120.64 | D119: 120.6389782 | E119: 0.001021799992
B120: 25.18 | C120: 121.03 | D120: 121.0324828 | E120: -0.002482800008
B121: 25.19 | C121: 121.43 | D121: 121.4259874 | E121: 0.004012599992
B122: 25.2 | C122: 121.82 | D122: 121.819492 | E122: 0.0005079999922
B123: 25.21 | C123: 122.21 | D123: 122.2129966 | E123: -0.002996600008
B124: 25.22 | C124: 122.61 | D124: 122.6065012 | E124: 0.003498799992
B125: 25.23 | C125: 123 | D125: 123.0000058 | E125: -5.800007784e-06
B126: 25.24 | C126: 123.39 | D126: 123.3935104 | E126: -0.003510400008
B127: 25.25 | C127: 123.79 | D127: 123.787015 | E127: 0.002984999992
B128: 25.26 | C128: 124.18 | D128: 124.1805196 | E128: -0.0005196000079
B129: 25.27 | C129: 124.57 | D129: 124.5740242 | E129: -0.004024200008
B130: 25.28 | C130: 124.97 | D130: 124.9675288 | E130: =C130-D130 -> 0.002471199992
B131: 25.29 | C131: 125.36 | D131: 125.3610334 | E131: -0.001033400008
B132: 25.3 | C132: 125.75 | D132: 125.754538 | E132: -0.004538000008
B133: 25.31 | C133: 126.15 | D133: 126.1480426 | E133: 0.001957399992
B134: 25.32 | C134: 126.54 | D134: 126.5415472 | E134: -0.001547200008
B135: 25.33 | C135: 126.94 | D135: 126.9350518 | E135: 0.004948199992
B136: 25.34 | C136: 127.33 | D136: 127.3285564 | E136: 0.001443599992
B137: 25.35 | C137: 127.72 | D137: 127.722061 | E137: -0.002061000008
B138: 25.36 | C138: 128.12 | D138: 128.1155656 | E138: 0.004434399992
B139: 25.37 | C139: 128.51 | D139: 128.5090702 | E139: 0.0009297999922
B140: 25.38 | C140: 128.9 | D140: 128.9025748 | E140: -0.002574800008
B141: 25.39 | C141: 129.3 | D141: 129.2960794 | E141: 0.003920599992
B142: 25.4 | C142: 129.69 | D142: 129.689584 | E142: 0.0004159999921
B143: 25.41 | C143: 130.08 | D143: 130.0830886 | E143: -0.003088600008
B144: 25.42 | C144: 130.48 | D144: 130.4765932 | E144: 0.003406799992
B145: 25.43 | C145: 130.87 | D145: 130.8700978 | E145: -9.780000778e-05
B146: 25.44 | C146: 131.26 | D146: 131.2636024 | E146: -0.003602400008
B147: 25.45 | C147: 131.66 | D147: 131.657107 | E147: 0.002892999992
B148: 25.46 | C148: 132.05 | D148: 132.0506116 | E148: -0.0006116000079
B149: 25.47 | C149: 132.44 | D149: 132.4441162 | E149: -0.004116200008
B150: 25.48 | C150: 132.84 | D150: 132.8376208 | E150: 0.002379199992
B151: 25.49 | C151: 133.23 | D151: 133.2311254 | E151: -0.001125400008
B152: 25.5 | C152: 133.62 | D152: 133.62463 | E152: -0.004630000008
B153: 25.51 | C153: 134.02 | D153: 134.0181346 | E153: 0.001865399992
B154: 25.52 | C154: 134.41 | D154: 134.4116392 | E154: -0.001639200008
B155: 25.53 | C155: 134.81 | D155: 134.8051438 | E155: 0.004856199992
B156: 25.54 | C156: 135.2 | D156: 135.1986484 | E156: 0.001351599992
B157: 25.55 | C157: 135.59 | D157: 135.592153 | E157: -0.002153000008
B158: 25.56 | C158: 135.99 | D158: 135.9856576 | E158: 0.004342399992
B159: 25.57 | C159: 136.38 | D159: 136.3791622 | E159: 0.0008377999922
B160: 25.58 | C160: 136.77 | D160: 136.7726668 | E160: -0.002666800008
B161: 25.59 | C161: 137.17 | D161: 137.1661714 | E161: 0.003828599992
B162: 25.6 | C162: 137.56 | D162: 137.559676 | E162: 0.0003239999922
B163: 25.61 | C163: 137.95 | D163: 137.9531806 | E163: -0.003180600008
B164: 25.62 | C164: 138.35 | D164: 138.3466852 | E164: 0.003314799992
B165: 25.63 | C165: 138.74 | D165: 138.7401898 | E165: -0.0001898000079
B166: 25.64 | C166: 139.13 | D166: =39.35046*B166 - 869.8121 -> 139.1336944 | E166: -0.003694400008
B167: 25.65 | C167: 139.53 | D167: 139.527199 | E167: 0.002800999992
B168: 25.66 | C168: 139.92 | D168: 139.9207036 | E168: -0.0007036000078
B169: 25.67 | C169: 140.31 | D169: 140.3142082 | E169: -0.004208200012
B170: 25.68 | C170: 140.71 | D170: 140.7077128 | E170: 0.002287199992
B171: 25.69 | C171: 141.1 | D171: 141.1012174 | E171: -0.001217400008
B172: 25.7 | C172: 141.49 | D172: 141.494722 | E172: -0.004722000012
B173: 25.71 | C173: 141.89 | D173: 141.8882266 | E173: 0.001773399992
B174: 25.72 | C174: 142.28 | D174: 142.2817312 | E174: -0.001731200012
B175: 25.73 | C175: 142.68 | D175: 142.6752358 | E175: 0.004764199988
B176: 25.74 | C176: 143.07 | D176: 143.0687404 | E176: 0.001259599988
B177: 25.75 | C177: 143.46 | D177: 143.462245 | E177: -0.002245000012
B178: 25.76 | C178: 143.86 | D178: 143.8557496 | E178: 0.004250399988
B179: 25.77 | C179: 144.25 | D179: 144.2492542 | E179: 0.0007457999882
B180: 25.78 | C180: 144.64 | D180: 144.6427588 | E180: -0.002758800012
B181: 25.79 | C181: 145.04 | D181: 145.0362634 | E181: 0.003736599988
B182: 25.8 | C182: 145.43 | D182: 145.429768 | E182: 0.0002319999882
B183: 25.81 | C183: 145.82 | D183: 145.8232726 | E183: -0.003272600012
B184: 25.82 | C184: 146.22 | D184: 146.2167772 | E184: 0.003222799988
B185: 25.83 | C185: 146.61 | D185: 146.6102818 | E185: -0.0002818000117
B186: 25.84 | C186: 147 | D186: 147.0037864 | E186: -0.003786400012
B187: 25.85 | C187: 147.4 | D187: 147.397291 | E187: 0.002708999988
B188: 25.86 | C188: 147.79 | D188: 147.7907956 | E188: -0.0007956000119
B189: 25.87 | C189: 148.18 | D189: 148.1843002 | E189: -0.004300200012
B190: 25.88 | C190: 148.58 | D190: 148.5778048 | E190: 0.002195199988
B191: 25.89 | C191: 148.97 | D191: 148.9713094 | E191: -0.001309400012
B192: 25.9 | C192: 149.36 | D192: 149.364814 | E192: -0.004814000012
B193: 25.91 | C193: 149.76 | D193: 149.7583186 | E193: 0.001681399988
B194: 25.92 | C194: 150.15 | D194: 150.1518232 | E194: =C194-D194 -> -0.001823200012
B195: 25.93 | C195: 150.55 | D195: 150.5453278 | E195: 0.004672199988
B196: 25.94 | C196: 150.94 | D196: 150.9388324 | E196: 0.001167599988
B197: 25.95 | C197: 151.33 | D197: 151.332337 | E197: -0.002337000012
B198: 25.96 | C198: 151.73 | D198: 151.7258416 | E198: 0.004158399988
B199: 25.97 | C199: 152.12 | D199: 152.1193462 | E199: 0.0006537999882
B200: 25.98 | C200: 152.51 | D200: 152.5128508 | E200: -0.002850800012
B201: 25.99 | C201: 152.91 | D201: =39.35046*B201 - 869.8121 -> 152.9063554 | E201: 0.003644599988
... 401 more rows

Sheet Лист2

Sheet Лист3
